[Event "Live Chess"]
[Site "Chess.com"]
[Date "2024.06.02"]
[Round "-"]
[White "Pablo_dmp"]
[Black "KeithArkell"]
[Result "0-1"]
[WhiteElo "1996"]
[BlackElo "2401"]
[TimeControl "300"]
[EndTime "7:38:50 PDT"]
[Termination "KeithArkell won by resignation"]

1. e4 {[%clk 0:04:59.8]} 1... c6 {[%clk 0:04:57.9]} 2. Nc3 {[%clk 0:04:58.4]}
2... d5 {[%clk 0:04:57.2]} 3. Nf3 {[%clk 0:04:57.8]} 3... Bg4 {[%clk 0:04:56.8]}
4. h3 {[%clk 0:04:56.5]} 4... Bxf3 {[%clk 0:04:56.2]} 5. Qxf3 {[%clk 0:04:55.7]}
5... dxe4 {[%clk 0:04:55.8]} 6. Nxe4 {[%clk 0:04:54.7]} 6... Nd7 {[%clk
0:04:55.5]} 7. Bc4 {[%clk 0:04:52.5]} 7... Ne5 {[%clk 0:04:53.5]} 8. Qe2 {[%clk
0:04:48.8]} 8... Nxc4 {[%clk 0:04:52.6]} 9. Qxc4 {[%clk 0:04:47.9]} 9... Qd5
{[%clk 0:04:51.9]} 10. Qe2 {[%clk 0:04:45.1]} 10... e6 {[%clk 0:04:51.1]} 11.
O-O {[%clk 0:04:41.6]} 11... Be7 {[%clk 0:04:50.3]} 12. c3 {[%clk 0:04:39.4]}
12... Nf6 {[%clk 0:04:49.4]} 13. Ng3 {[%clk 0:04:36.8]} 13... O-O {[%clk
0:04:36.3]} 14. d4 {[%clk 0:04:35.5]} 14... c5 {[%clk 0:04:34.7]} 15. Be3 {[%clk
0:04:32.5]} 15... cxd4 {[%clk 0:04:33.2]} 16. Bxd4 {[%clk 0:04:30.6]} 16... Rfd8
{[%clk 0:04:32.3]} 17. Rad1 {[%clk 0:04:28.7]} 17... Qc6 {[%clk 0:04:30.9]} 18.
Nh5 {[%clk 0:04:21.3]} 18... Rd5 {[%clk 0:04:24.1]} 19. Nxf6+ {[%clk 0:04:17.4]}
19... Bxf6 {[%clk 0:04:22.8]} 20. Bxf6 {[%clk 0:04:10.9]} 20... gxf6 {[%clk
0:04:22.7]} 21. Qg4+ {[%clk 0:04:06.5]} 21... Rg5 {[%clk 0:04:01.3]} 0-1

[Event "Live Chess"]
[Site "Chess.com"]
[Date "2024.06.02"]
[Round "-"]
[White "TheSmoulderingMaster"]
[Black "halfberg"]
[Result "1-0"]
[WhiteElo "1782"]
[BlackElo "1903"]
[TimeControl "300"]
[EndTime "7:39:01 PDT"]
[Termination "TheSmoulderingMaster won by resignation"]

1. e4 {[%clk 0:04:57.5]} 1... c5 {[%clk 0:04:56.9]} 2. Nf3 {[%clk 0:04:53.5]}
2... Nc6 {[%clk 0:04:55.8]} 3. d4 {[%clk 0:04:52]} 3... cxd4 {[%clk 0:04:55]} 4.
Nxd4 {[%clk 0:04:50.8]} 4... Nf6 {[%clk 0:04:54.5]} 5. Nc3 {[%clk 0:04:49.7]}
5... e5 {[%clk 0:04:53.5]} 6. Ndb5 {[%clk 0:04:48.3]} 6... d6 {[%clk 0:04:52.3]}
7. Bg5 {[%clk 0:04:46.1]} 7... a6 {[%clk 0:04:45.3]} 8. Na3 {[%clk 0:04:44.4]}
8... b5 {[%clk 0:04:44.2]} 9. Nd5 {[%clk 0:04:43.2]} 9... Be7 {[%clk 0:04:43.1]}
10. Nxe7 {[%clk 0:04:41.4]} 10... Qxe7 {[%clk 0:04:41.3]} 11. c3 {[%clk
0:04:40.7]} 11... O-O {[%clk 0:04:39.8]} 12. Be2 {[%clk 0:04:38.5]} 12... h6
{[%clk 0:04:38]} 13. Bh4 {[%clk 0:04:36.8]} 13... Be6 {[%clk 0:04:20.2]} 14. Nc2
{[%clk 0:04:32.6]} 14... Qd7 {[%clk 0:04:03.2]} 15. Bxf6 {[%clk 0:04:28.9]}
15... gxf6 {[%clk 0:04:01.8]} 16. Qd2 {[%clk 0:04:28.3]} 16... Kh7 {[%clk
0:03:59.5]} 17. O-O-O {[%clk 0:04:24.2]} 17... f5 {[%clk 0:03:47.8]} 18. exf5
{[%clk 0:04:20]} 18... Bxf5 {[%clk 0:03:45.7]} 19. Qxd6 {[%clk 0:04:19.2]} 19...
Qxd6 {[%clk 0:03:42.9]} 20. Rxd6 {[%clk 0:04:18]} 20... Rac8 {[%clk 0:03:35.6]}
21. Bf3 {[%clk 0:04:13.7]} 21... Bxc2 {[%clk 0:03:20.2]} 22. Kxc2 {[%clk
0:04:11.6]} 22... Nd4+ {[%clk 0:03:19]} 23. Kd3 {[%clk 0:04:09.7]} 23... Nxf3
{[%clk 0:03:16.7]} 24. gxf3 {[%clk 0:04:08.1]} 24... Rfd8 {[%clk 0:03:10.9]} 25.
Rxd8 {[%clk 0:04:05]} 25... Rxd8+ {[%clk 0:03:09.6]} 26. Ke3 {[%clk 0:04:02.2]}
26... Kg6 {[%clk 0:03:05.1]} 27. Rg1+ {[%clk 0:04:01]} 27... Kf6 {[%clk
0:03:03.3]} 28. Rg4 {[%clk 0:03:59.4]} 28... Rd1 {[%clk 0:02:59]} 29. a4 {[%clk
0:03:53.3]} 29... bxa4 {[%clk 0:02:39]} 30. Rxa4 {[%clk 0:03:48.7]} 30... Rd6
{[%clk 0:02:38.4]} 31. Ke4 {[%clk 0:03:44.1]} 31... Ke6 {[%clk 0:02:36]} 32. Ra5
{[%clk 0:03:40.8]} 32... f5+ {[%clk 0:02:34.6]} 33. Ke3 {[%clk 0:03:38.7]} 33...
Rb6 {[%clk 0:02:30.4]} 34. b4 {[%clk 0:03:35.7]} 34... Kf6 {[%clk 0:02:26.9]}
35. Kd3 {[%clk 0:03:31.9]} 35... Rc6 {[%clk 0:02:16.7]} 36. c4 {[%clk
0:03:29.2]} 36... Re6 {[%clk 0:02:05.2]} 37. b5 {[%clk 0:03:24.9]} 37... axb5
{[%clk 0:02:02.5]} 38. cxb5 {[%clk 0:03:24]} 38... Kg5 {[%clk 0:02:00.7]} 39.
Ra6 {[%clk 0:03:22.5]} 39... Re8 {[%clk 0:01:56.4]} 40. Rc6 {[%clk 0:03:18.3]}
40... Rd8+ {[%clk 0:01:48.9]} 41. Kc4 {[%clk 0:03:16.3]} 41... Rd1 {[%clk
0:01:47.6]} 42. b6 {[%clk 0:03:14.6]} 42... Kf4 {[%clk 0:01:38.5]} 43. b7 {[%clk
0:03:10]} 43... Rc1+ {[%clk 0:01:37.2]} 44. Kb5 {[%clk 0:03:07.7]} 44... Rb1+
{[%clk 0:01:35.1]} 45. Ka6 {[%clk 0:03:06.6]} 45... Kxf3 {[%clk 0:01:34.5]} 46.
Rb6 {[%clk 0:03:03.7]} 46... Ra1+ {[%clk 0:01:32.3]} 47. Kb5 {[%clk 0:03:02.6]}
47... Rb1+ {[%clk 0:01:30.5]} 48. Kc6 {[%clk 0:03:01.9]} 48... Rc1+ {[%clk
0:01:29.5]} 49. Kd6 {[%clk 0:03:00.6]} 49... Rd1+ {[%clk 0:01:24.7]} 50. Kxe5
{[%clk 0:02:58.8]} 50... Rd8 {[%clk 0:01:21.8]} 51. b8=Q {[%clk 0:02:56.6]}
51... Rxb8 {[%clk 0:01:20]} 52. Rxb8 {[%clk 0:02:54.9]} 52... f4 {[%clk
0:01:17.6]} 53. Rf8 {[%clk 0:02:46.7]} 1-0

[Event "Live Chess"]
[Site "Chess.com"]
[Date "2024.06.02"]
[Round "-"]
[White "wadsy27"]
[Black "Plimsol"]
[Result "1-0"]
[WhiteElo "2603"]
[BlackElo "2367"]
[TimeControl "300"]
[EndTime "7:39:13 PDT"]
[Termination "wadsy27 won on time"]

1. d4 {[%clk 0:04:57.2]} 1... e6 {[%clk 0:04:58.9]} 2. c4 {[%clk 0:04:56.8]}
2... Nf6 {[%clk 0:04:58.3]} 3. Nf3 {[%clk 0:04:56]} 3... b6 {[%clk 0:04:57.3]}
4. a3 {[%clk 0:04:54.2]} 4... Bb7 {[%clk 0:04:52.5]} 5. Nc3 {[%clk 0:04:53.7]}
5... Ne4 {[%clk 0:04:51]} 6. Nxe4 {[%clk 0:04:48]} 6... Bxe4 {[%clk 0:04:49.6]}
7. Bf4 {[%clk 0:04:42]} 7... Be7 {[%clk 0:04:42.9]} 8. e3 {[%clk 0:04:41]} 8...
O-O {[%clk 0:04:39.3]} 9. Bd3 {[%clk 0:04:39.3]} 9... Bxd3 {[%clk 0:04:21.9]}
10. Qxd3 {[%clk 0:04:39.2]} 10... d6 {[%clk 0:04:21]} 11. h4 {[%clk 0:04:31.5]}
11... Nd7 {[%clk 0:04:00.7]} 12. Ng5 {[%clk 0:04:08.9]} 12... Nf6 {[%clk
0:03:59.3]} 13. e4 {[%clk 0:04:06.1]} 13... e5 {[%clk 0:03:58.7]} 14. dxe5
{[%clk 0:04:04.6]} 14... dxe5 {[%clk 0:03:57.8]} 15. Qxd8 {[%clk 0:04:03.7]}
15... Raxd8 {[%clk 0:03:56.6]} 16. Bxe5 {[%clk 0:04:03.1]} 16... h6 {[%clk
0:03:55]} 17. Nf3 {[%clk 0:03:45.7]} 17... Nxe4 {[%clk 0:03:53.8]} 18. O-O
{[%clk 0:03:42.3]} 18... Bf6 {[%clk 0:03:50.1]} 19. Bxf6 {[%clk 0:03:38.1]}
19... Nxf6 {[%clk 0:03:48.9]} 20. c5 {[%clk 0:03:34.7]} 20... Rd3 {[%clk
0:03:35.6]} 21. Rfe1 {[%clk 0:03:28.5]} 21... Rfd8 {[%clk 0:03:33.3]} 22. Rac1
{[%clk 0:03:15.2]} 22... Kf8 {[%clk 0:03:19.1]} 23. Ne5 {[%clk 0:02:55.9]} 23...
Rd2 {[%clk 0:03:07.8]} 24. Nc6 {[%clk 0:02:48.9]} 24... R8d5 {[%clk 0:03:02.5]}
25. Nxa7 {[%clk 0:02:41.3]} 25... bxc5 {[%clk 0:02:57.3]} 26. b4 {[%clk
0:02:08]} 26... Ra2 {[%clk 0:02:47.9]} 27. Rxc5 {[%clk 0:01:59.3]} 27... Rxc5
{[%clk 0:02:46.1]} 28. bxc5 {[%clk 0:01:58.7]} 28... Rxa3 {[%clk 0:02:45.5]} 29.
Nb5 {[%clk 0:01:57.4]} 29... Ra5 {[%clk 0:02:41.1]} 30. Rb1 {[%clk 0:01:42.1]}
30... c6 {[%clk 0:02:30.3]} 31. Nd6 {[%clk 0:01:40.9]} 31... Rxc5 {[%clk
0:02:25.3]} 32. Rb7 {[%clk 0:01:38.3]} 32... Rd5 {[%clk 0:02:08.9]} 33. Nxf7
{[%clk 0:01:16.9]} 33... Ng4 {[%clk 0:02:05.8]} 34. g3 {[%clk 0:01:10.3]} 34...
Rd1+ {[%clk 0:02:04.4]} 35. Kg2 {[%clk 0:01:07.8]} 35... Rd2 {[%clk 0:02:03.9]}
36. Nh8 {[%clk 0:00:55.7]} 36... Rxf2+ {[%clk 0:02:00.3]} 37. Kg1 {[%clk
0:00:54.7]} 37... Kg8 {[%clk 0:01:41.8]} 38. Ng6 {[%clk 0:00:49.8]} 38... Rf3
{[%clk 0:01:03]} 39. Rb8+ {[%clk 0:00:37.1]} 39... Kh7 {[%clk 0:00:29.6]} 40. h5
{[%clk 0:00:26.6]} 40... Rxg3+ {[%clk 0:00:28]} 41. Kf1 {[%clk 0:00:26.3]} 41...
Nh2+ {[%clk 0:00:26]} 42. Kf2 {[%clk 0:00:25.5]} 42... Rxg6 {[%clk 0:00:24.8]}
43. hxg6+ {[%clk 0:00:24.9]} 43... Kxg6 {[%clk 0:00:24.4]} 44. Kg3 {[%clk
0:00:22.4]} 44... Nf1+ {[%clk 0:00:21.5]} 45. Kf4 {[%clk 0:00:21.6]} 45... h5
{[%clk 0:00:14.4]} 46. Rb2 {[%clk 0:00:17.5]} 46... h4 {[%clk 0:00:01.5]} 47.
Kg4 {[%clk 0:00:16.8]} 1-0

[Event "Live Chess"]
[Site "Chess.com"]
[Date "2024.06.02"]
[Round "-"]
[White "NeilDruggan73"]
[Black "E2E4colchester"]
[Result "1-0"]
[WhiteElo "1718"]
[BlackElo "1164"]
[TimeControl "300"]
[EndTime "7:39:15 PDT"]
[Termination "NeilDruggan73 won by checkmate"]

1. d4 {[%clk 0:04:57.4]} 1... d5 {[%clk 0:04:52.7]} 2. Bg5 {[%clk 0:04:53.6]}
2... Nf6 {[%clk 0:04:50.7]} 3. Bxf6 {[%clk 0:04:52.3]} 3... exf6 {[%clk
0:04:49.7]} 4. e3 {[%clk 0:04:51.8]} 4... Bd6 {[%clk 0:04:48.4]} 5. g3 {[%clk
0:04:49.5]} 5... O-O {[%clk 0:04:47.3]} 6. Bg2 {[%clk 0:04:48.6]} 6... Be6
{[%clk 0:04:46.3]} 7. Ne2 {[%clk 0:04:47.4]} 7... Nc6 {[%clk 0:04:44.3]} 8. b3
{[%clk 0:04:42.7]} 8... a6 {[%clk 0:04:43.2]} 9. Nd2 {[%clk 0:04:38]} 9... Nb4
{[%clk 0:04:40.4]} 10. a3 {[%clk 0:04:34.6]} 10... Nc6 {[%clk 0:04:39.1]} 11. c4
{[%clk 0:04:31.8]} 11... b5 {[%clk 0:04:37.3]} 12. cxd5 {[%clk 0:04:27.2]} 12...
Bxd5 {[%clk 0:04:27.1]} 13. Bxd5 {[%clk 0:04:25.6]} 13... Bxg3 {[%clk
0:04:25.8]} 14. Bxc6 {[%clk 0:04:21.5]} 14... Bxf2+ {[%clk 0:04:24.4]} 15. Kxf2
{[%clk 0:04:20.3]} 15... Rb8 {[%clk 0:04:21]} 16. Nf4 {[%clk 0:04:09.2]} 16...
g5 {[%clk 0:04:18.8]} 17. Rg1 {[%clk 0:04:05.3]} 17... h6 {[%clk 0:04:16]} 18.
Qh5 {[%clk 0:04:03.5]} 18... Kh7 {[%clk 0:04:13.5]} 19. Ne4 {[%clk 0:03:46.6]}
19... gxf4 {[%clk 0:04:11]} 20. Qf5+ {[%clk 0:03:44.2]} 20... Kh8 {[%clk
0:04:08.2]} 21. Nxf6 {[%clk 0:03:41.6]} 21... fxe3+ {[%clk 0:04:02.5]} 22. Ke2
{[%clk 0:03:36.7]} 22... Qxf6 {[%clk 0:03:42.3]} 23. Qxf6+ {[%clk 0:03:33.6]}
23... Kh7 {[%clk 0:03:34.6]} 24. Be4# {[%clk 0:03:28.7]} 1-0

[Event "Live Chess"]
[Site "Chess.com"]
[Date "2024.06.02"]
[Round "-"]
[White "DJ_Lambton"]
[Black "ProfPoisson"]
[Result "0-1"]
[WhiteElo "1802"]
[BlackElo "1339"]
[TimeControl "300"]
[EndTime "7:39:28 PDT"]
[Termination "ProfPoisson won by resignation"]

1. c4 {[%clk 0:04:59.6]} 1... e6 {[%clk 0:04:48.8]} 2. g3 {[%clk 0:04:58.6]}
2... f5 {[%clk 0:04:46.9]} 3. Bg2 {[%clk 0:04:57.6]} 3... Nf6 {[%clk 0:04:45.4]}
4. Nc3 {[%clk 0:04:57.1]} 4... Bb4 {[%clk 0:04:42.9]} 5. e3 {[%clk 0:04:55.5]}
5... Bxc3 {[%clk 0:04:41.4]} 6. bxc3 {[%clk 0:04:55.4]} 6... O-O {[%clk
0:04:39.1]} 7. Ne2 {[%clk 0:04:54.8]} 7... c5 {[%clk 0:04:31.7]} 8. O-O {[%clk
0:04:54.1]} 8... d6 {[%clk 0:04:30.2]} 9. d4 {[%clk 0:04:52.9]} 9... Nbd7 {[%clk
0:04:14]} 10. d5 {[%clk 0:04:45.1]} 10... e5 {[%clk 0:04:11.6]} 11. e4 {[%clk
0:04:24.4]} 11... Nxe4 {[%clk 0:04:06.1]} 12. Bxe4 {[%clk 0:04:22.8]} 12... fxe4
{[%clk 0:04:03.5]} 13. Qd2 {[%clk 0:04:21.3]} 13... Nb6 {[%clk 0:03:52.6]} 14.
Rb1 {[%clk 0:04:02.7]} 14... Nxc4 {[%clk 0:03:50.6]} 15. Qg5 {[%clk 0:04:01.7]}
15... Qxg5 {[%clk 0:03:45.2]} 16. Bxg5 {[%clk 0:04:01.6]} 16... h6 {[%clk
0:03:34.6]} 17. Be7 {[%clk 0:03:57.6]} 17... Rf7 {[%clk 0:03:24.6]} 18. Bd8
{[%clk 0:03:56.4]} 18... Nd2 {[%clk 0:03:21.4]} 19. Ba5 {[%clk 0:03:46]} 19...
Nxf1 {[%clk 0:03:18.2]} 20. Rxf1 {[%clk 0:03:45]} 20... b6 {[%clk 0:03:17]} 0-1

[Event "Live Chess"]
[Site "Chess.com"]
[Date "2024.06.02"]
[Round "-"]
[White "booktrunk"]
[Black "ShanthamGrarks"]
[Result "0-1"]
[WhiteElo "1490"]
[BlackElo "1904"]
[TimeControl "300"]
[EndTime "7:39:37 PDT"]
[Termination "ShanthamGrarks won by checkmate"]

1. d4 {[%clk 0:04:51.4]} 1... Nf6 {[%clk 0:04:55.9]} 2. Nc3 {[%clk 0:04:47.4]}
2... c6 {[%clk 0:04:45.9]} 3. Bf4 {[%clk 0:04:36.5]} 3... d5 {[%clk 0:04:40.8]}
4. e3 {[%clk 0:04:32.1]} 4... Qb6 {[%clk 0:04:38.4]} 5. Rb1 {[%clk 0:04:29.1]}
5... Bf5 {[%clk 0:04:35.9]} 6. Bd3 {[%clk 0:04:26.3]} 6... Bxd3 {[%clk
0:04:33.6]} 7. Qxd3 {[%clk 0:04:24.7]} 7... e6 {[%clk 0:04:33.2]} 8. Nf3 {[%clk
0:04:22.3]} 8... Bb4 {[%clk 0:04:31.5]} 9. O-O {[%clk 0:04:19.3]} 9... Nbd7
{[%clk 0:04:29.5]} 10. a3 {[%clk 0:04:17.7]} 10... Be7 {[%clk 0:04:24.5]} 11.
Na4 {[%clk 0:04:12.3]} 11... Qd8 {[%clk 0:04:23.1]} 12. b3 {[%clk 0:04:08.6]}
12... Bxa3 {[%clk 0:04:19.2]} 13. Ne5 {[%clk 0:04:04.9]} 13... Nxe5 {[%clk
0:04:13.6]} 14. dxe5 {[%clk 0:03:58.7]} 14... Ne4 {[%clk 0:04:08.9]} 15. b4
{[%clk 0:03:52.8]} 15... Bxb4 {[%clk 0:03:45.6]} 16. Rxb4 {[%clk 0:03:46.7]}
16... b5 {[%clk 0:03:45.1]} 17. Nc3 {[%clk 0:03:41.1]} 17... a5 {[%clk
0:03:35.4]} 18. Rbb1 {[%clk 0:03:38.4]} 18... Nc5 {[%clk 0:03:29.8]} 19. Qd2
{[%clk 0:03:37.2]} 19... O-O {[%clk 0:03:26.7]} 20. Na2 {[%clk 0:03:29.4]} 20...
b4 {[%clk 0:03:25.1]} 21. c3 {[%clk 0:03:26.2]} 21... b3 {[%clk 0:03:23.2]} 22.
Nc1 {[%clk 0:03:25.1]} 22... a4 {[%clk 0:03:22.6]} 23. Qb2 {[%clk 0:03:22.3]}
23... a3 {[%clk 0:03:20.4]} 24. Qa1 {[%clk 0:03:15.8]} 24... b2 {[%clk
0:03:13.6]} 25. Qa2 {[%clk 0:03:13.4]} 25... bxc1=B {[%clk 0:03:08.4]} 26. Rfxc1
{[%clk 0:03:13.3]} 26... Nd3 {[%clk 0:03:03.6]} 27. Rd1 {[%clk 0:03:07.5]} 27...
Nxf4 {[%clk 0:03:02.1]} 28. exf4 {[%clk 0:03:05.5]} 28... Qa5 {[%clk 0:03:00.4]}
29. Rb3 {[%clk 0:03:03]} 29... c5 {[%clk 0:02:56.6]} 30. Ra1 {[%clk 0:03:00.7]}
30... Rfb8 {[%clk 0:02:42.8]} 31. Rxa3 {[%clk 0:02:58.4]} 31... Qxa3 {[%clk
0:02:41.7]} 32. Qxa3 {[%clk 0:02:57.1]} 32... Rxa3 {[%clk 0:02:40.5]} 33. Rxa3
{[%clk 0:02:55.9]} 33... Rb1# {[%clk 0:02:38.9]} 0-1

[Event "Live Chess"]
[Site "Chess.com"]
[Date "2024.06.02"]
[Round "-"]
[White "lateforthesky"]
[Black "gunslinger222"]
[Result "1/2-1/2"]
[WhiteElo "2074"]
[BlackElo "2269"]
[TimeControl "300"]
[EndTime "7:39:42 PDT"]
[Termination "Game drawn by repetition"]

1. e4 {[%clk 0:04:53]} 1... d5 {[%clk 0:04:59.1]} 2. exd5 {[%clk 0:04:41.8]}
2... c6 {[%clk 0:04:59]} 3. d4 {[%clk 0:04:39]} 3... cxd5 {[%clk 0:04:56.7]} 4.
Nf3 {[%clk 0:04:34.5]} 4... Nc6 {[%clk 0:04:56.2]} 5. Bd3 {[%clk 0:04:30.9]}
5... Bg4 {[%clk 0:04:55.7]} 6. c3 {[%clk 0:04:29.6]} 6... e6 {[%clk 0:04:55.1]}
7. h3 {[%clk 0:04:27.7]} 7... Bh5 {[%clk 0:04:53.4]} 8. Nbd2 {[%clk 0:04:24.6]}
8... Bd6 {[%clk 0:04:52.5]} 9. O-O {[%clk 0:04:19.5]} 9... Nge7 {[%clk 0:04:52]}
10. Re1 {[%clk 0:04:17.4]} 10... Qd7 {[%clk 0:04:49]} 11. Nf1 {[%clk 0:04:11.6]}
11... f6 {[%clk 0:04:46.9]} 12. Ng3 {[%clk 0:04:10.4]} 12... Bf7 {[%clk
0:04:46.1]} 13. b4 {[%clk 0:04:03.3]} 13... Bxg3 {[%clk 0:04:38.7]} 14. fxg3
{[%clk 0:04:01.6]} 14... O-O {[%clk 0:04:34.8]} 15. a4 {[%clk 0:03:57.9]} 15...
Nf5 {[%clk 0:04:32.8]} 16. Kh2 {[%clk 0:03:46.2]} 16... Rfe8 {[%clk 0:04:24.3]}
17. a5 {[%clk 0:03:33.4]} 17... Rac8 {[%clk 0:04:14.3]} 18. b5 {[%clk
0:03:28.1]} 18... Nce7 {[%clk 0:04:13.3]} 19. Bd2 {[%clk 0:03:11.4]} 19... Nd6
{[%clk 0:04:12]} 20. Rb1 {[%clk 0:03:04.1]} 20... Nc4 {[%clk 0:03:58.7]} 21. Qc2
{[%clk 0:02:47.3]} 21... Na3 {[%clk 0:03:47.8]} 22. Bxh7+ {[%clk 0:02:39.9]}
22... Kh8 {[%clk 0:03:46]} 23. Qd3 {[%clk 0:02:39.1]} 23... g6 {[%clk 0:03:45]}
24. Ra1 {[%clk 0:02:31.6]} 24... Qxb5 {[%clk 0:03:36.9]} 25. Bxg6 {[%clk
0:02:26.9]} 25... Bxg6 {[%clk 0:03:29.4]} 26. Qe3 {[%clk 0:02:20.2]} 26... Nc2
{[%clk 0:03:19.5]} 27. Qh6+ {[%clk 0:02:17.9]} 27... Kg8 {[%clk 0:03:19.1]} 28.
Rxe6 {[%clk 0:01:56]} 28... Rc6 {[%clk 0:03:12.4]} 29. Rxe7 {[%clk 0:01:41.2]}
29... Rxe7 {[%clk 0:03:01]} 30. Qxg6+ {[%clk 0:01:38.5]} 30... Rg7 {[%clk
0:02:59.4]} 31. Qe8+ {[%clk 0:01:34.7]} 31... Kh7 {[%clk 0:02:57.9]} 32. Qh5+
{[%clk 0:01:11.7]} 32... Kg8 {[%clk 0:02:56.8]} 33. Qe8+ {[%clk 0:01:10.5]}
33... Kh7 {[%clk 0:02:55.3]} 34. Qh5+ {[%clk 0:01:09]} 34... Kg8 {[%clk
0:02:54.5]} 35. Qe8+ {[%clk 0:01:07.9]} 1/2-1/2

[Event "Live Chess"]
[Site "Chess.com"]
[Date "2024.06.02"]
[Round "-"]
[White "GerardATHart"]
[Black "kylet1990"]
[Result "0-1"]
[WhiteElo "1396"]
[BlackElo "766"]
[TimeControl "300"]
[EndTime "7:39:45 PDT"]
[Termination "kylet1990 won by resignation"]

1. e4 {[%clk 0:04:57.2]} 1... c6 {[%clk 0:04:58.5]} 2. d4 {[%clk 0:04:55.3]}
2... d5 {[%clk 0:04:57.4]} 3. exd5 {[%clk 0:04:52.6]} 3... cxd5 {[%clk
0:04:56.4]} 4. Bd3 {[%clk 0:04:51.3]} 4... Nf6 {[%clk 0:04:53.6]} 5. Nf3 {[%clk
0:04:49.7]} 5... Nc6 {[%clk 0:04:52.3]} 6. c3 {[%clk 0:04:48.4]} 6... Bg4 {[%clk
0:04:41.1]} 7. h3 {[%clk 0:04:47]} 7... Bxf3 {[%clk 0:04:39.3]} 8. Qxf3 {[%clk
0:04:45.4]} 8... e6 {[%clk 0:04:29.5]} 9. Bg5 {[%clk 0:04:36]} 9... Be7 {[%clk
0:04:26.9]} 10. Nd2 {[%clk 0:04:25.2]} 10... O-O {[%clk 0:04:24.8]} 11. O-O-O
{[%clk 0:04:22]} 11... h6 {[%clk 0:04:19.9]} 12. Bh4 {[%clk 0:04:20.1]} 12...
Qa5 {[%clk 0:04:15.9]} 13. Kb1 {[%clk 0:04:17]} 13... b5 {[%clk 0:04:04.2]} 14.
Nb3 {[%clk 0:04:09.5]} 14... Qb6 {[%clk 0:03:57.4]} 15. g4 {[%clk 0:03:58]}
15... a5 {[%clk 0:03:55]} 16. g5 {[%clk 0:03:51.9]} 16... hxg5 {[%clk
0:03:50.1]} 17. Bxg5 {[%clk 0:03:48.7]} 17... a4 {[%clk 0:03:47.1]} 18. Nd2
{[%clk 0:03:21.1]} 18... b4 {[%clk 0:03:38.1]} 19. cxb4 {[%clk 0:03:14.5]} 19...
Nxb4 {[%clk 0:03:27.2]} 20. Rhg1 {[%clk 0:02:42.7]} 20... Qxd4 {[%clk
0:03:23.1]} 21. Be3 {[%clk 0:02:19.6]} 21... Qxd3+ {[%clk 0:03:15.4]} 22. Ka1
{[%clk 0:01:58.8]} 0-1

[Event "Live Chess"]
[Site "Chess.com"]
[Date "2024.06.02"]
[Round "-"]
[White "JanMur7"]
[Black "GwaryTek"]
[Result "0-1"]
[WhiteElo "2285"]
[BlackElo "1885"]
[TimeControl "300"]
[EndTime "7:39:51 PDT"]
[Termination "GwaryTek won by resignation"]

1. c4 {[%clk 0:04:58.8]} 1... Nf6 {[%clk 0:04:57.5]} 2. Nc3 {[%clk 0:04:57]}
2... c6 {[%clk 0:04:56.5]} 3. d4 {[%clk 0:04:55.1]} 3... d5 {[%clk 0:04:56.4]}
4. Nf3 {[%clk 0:04:53.8]} 4... dxc4 {[%clk 0:04:55.4]} 5. a4 {[%clk 0:04:51.5]}
5... a5 {[%clk 0:04:55]} 6. e4 {[%clk 0:04:49.1]} 6... Bg4 {[%clk 0:04:54.3]} 7.
Bxc4 {[%clk 0:04:45.6]} 7... e6 {[%clk 0:04:53.7]} 8. Be3 {[%clk 0:04:39.7]}
8... Nbd7 {[%clk 0:04:49.5]} 9. O-O {[%clk 0:04:36.3]} 9... Bb4 {[%clk 0:04:42]}
10. Bd3 {[%clk 0:04:33.5]} 10... Qc7 {[%clk 0:04:32.2]} 11. h3 {[%clk
0:04:25.1]} 11... Bh5 {[%clk 0:04:30.1]} 12. Rc1 {[%clk 0:04:22.9]} 12... O-O
{[%clk 0:04:20.3]} 13. d5 {[%clk 0:04:20.2]} 13... exd5 {[%clk 0:04:04.6]} 14.
exd5 {[%clk 0:04:16.3]} 14... Bxc3 {[%clk 0:04:02.7]} 15. bxc3 {[%clk
0:04:02.2]} 15... Nxd5 {[%clk 0:04:00.7]} 16. Bd4 {[%clk 0:04:00.7]} 16... Bg6
{[%clk 0:03:52.4]} 17. Bxg6 {[%clk 0:03:57.2]} 17... hxg6 {[%clk 0:03:51]} 18.
Qb3 {[%clk 0:03:53.9]} 18... Rab8 {[%clk 0:03:39.8]} 19. Rfe1 {[%clk 0:03:42.3]}
19... Rfe8 {[%clk 0:03:32.4]} 20. c4 {[%clk 0:03:10.2]} 20... Nf4 {[%clk
0:03:21.8]} 21. Qb2 {[%clk 0:03:02.3]} 21... Nd3 {[%clk 0:03:03.3]} 22. Rxe8+
{[%clk 0:02:59.1]} 22... Rxe8 {[%clk 0:03:03.2]} 23. Qa1 {[%clk 0:02:53.9]}
23... Nxc1 {[%clk 0:03:01.6]} 24. Bxg7 {[%clk 0:02:52.8]} 24... Ne2+ {[%clk
0:02:54.5]} 25. Kh1 {[%clk 0:02:49.4]} 25... f6 {[%clk 0:02:51.1]} 26. Bh6
{[%clk 0:02:40.2]} 26... Nf4 {[%clk 0:02:34.3]} 27. Qc1 {[%clk 0:02:32]} 27...
Ne6 {[%clk 0:02:28.8]} 28. Qc2 {[%clk 0:02:27.6]} 28... Ndf8 {[%clk 0:02:22.9]}
29. Be3 {[%clk 0:02:23.2]} 29... Kf7 {[%clk 0:02:11.4]} 30. Qb2 {[%clk
0:02:11.3]} 30... Qd7 {[%clk 0:02:06.7]} 31. Qb3 {[%clk 0:01:26.4]} 31... c5
{[%clk 0:02:00.3]} 32. h4 {[%clk 0:01:16.5]} 32... Rd8 {[%clk 0:01:56.8]} 33.
Kh2 {[%clk 0:01:09.5]} 33... Nd4 {[%clk 0:01:44.5]} 34. Bxd4 {[%clk 0:01:03.3]}
34... cxd4 {[%clk 0:01:44.3]} 35. c5+ {[%clk 0:01:02.9]} 35... Qd5 {[%clk
0:01:39.5]} 36. Qd3 {[%clk 0:00:59.6]} 36... Qxc5 {[%clk 0:01:27.5]} 37. Qb3+
{[%clk 0:00:57.8]} 37... Qd5 {[%clk 0:01:24]} 38. Qd3 {[%clk 0:00:54.1]} 38...
Ne6 {[%clk 0:01:19.7]} 39. g3 {[%clk 0:00:44.5]} 39... Nc5 {[%clk 0:01:14]} 40.
Qb5 {[%clk 0:00:41.8]} 40... Qxf3 {[%clk 0:01:05]} 41. Qxc5 {[%clk 0:00:41.3]}
41... Qxf2+ {[%clk 0:01:00.4]} 42. Kh3 {[%clk 0:00:40.9]} 42... Qf5+ {[%clk
0:00:59]} 43. Qxf5 {[%clk 0:00:39.1]} 43... gxf5 {[%clk 0:00:58.9]} 0-1

[Event "Live Chess"]
[Site "Chess.com"]
[Date "2024.06.02"]
[Round "-"]
[White "missedJariChance"]
[Black "Queensandpawns"]
[Result "0-1"]
[WhiteElo "1380"]
[BlackElo "2264"]
[TimeControl "300"]
[EndTime "7:39:51 PDT"]
[Termination "Queensandpawns won by checkmate"]

1. b3 {[%clk 0:04:53.8]} 1... e5 {[%clk 0:04:58.5]} 2. Bb2 {[%clk 0:04:51]} 2...
Nc6 {[%clk 0:04:58.4]} 3. Nf3 {[%clk 0:04:49.3]} 3... f5 {[%clk 0:04:58.3]} 4.
Nxe5 {[%clk 0:04:45.9]} 4... Qf6 {[%clk 0:04:57.3]} 5. Nd3 {[%clk 0:04:35.6]}
5... Qg6 {[%clk 0:04:55.6]} 6. e3 {[%clk 0:04:20]} 6... Nf6 {[%clk 0:04:53.9]}
7. Nf4 {[%clk 0:04:06.5]} 7... Qf7 {[%clk 0:04:51.5]} 8. Be2 {[%clk 0:04:04.1]}
8... Be7 {[%clk 0:04:49.7]} 9. O-O {[%clk 0:04:02.1]} 9... d5 {[%clk 0:04:48.1]}
10. c4 {[%clk 0:03:53.7]} 10... g5 {[%clk 0:04:43.1]} 11. cxd5 {[%clk 0:03:49]}
11... gxf4 {[%clk 0:04:41]} 12. dxc6 {[%clk 0:03:47.1]} 12... Rg8 {[%clk
0:04:40.7]} 13. Bf3 {[%clk 0:03:34.2]} 13... fxe3 {[%clk 0:04:33.8]} 14. dxe3
{[%clk 0:03:23.7]} 14... Be6 {[%clk 0:04:28.2]} 15. cxb7 {[%clk 0:03:13.1]}
15... Rd8 {[%clk 0:04:24.6]} 16. Qe2 {[%clk 0:03:08.9]} 16... Bd5 {[%clk
0:04:23.1]} 17. Bxd5 {[%clk 0:02:53.6]} 17... Qxd5 {[%clk 0:04:21.4]} 18. Nc3
{[%clk 0:02:35.5]} 18... Qxg2# {[%clk 0:04:19.1]} 0-1